fUST/lending_fUST_20250627
["ID","MTS","AMOUNT","RATE_DAILY","PERIOD"]
[368087917,1751020250491,-460.0,0.00020547,2]
[368087918,1751020250500,-550.47,0.00020547,2]
[368087919,1751020250509,-637.21,0.00020547,2]
[368087920,1751020250518,-4672.74,0.00020547,2]
[368087921,1751020250527,-2165.56,0.00020547,2]
[368087922,1751020250537,-1187.64,0.00020547,2]
[368087923,1751020250546,-460.0,0.00020547,2]
[368087924,1751020250555,-460.0,0.00020547,2]
[368087925,1751020250565,-757.12,0.00020547,2]
[368087926,1751020250574,-894.02,0.00020547,2]
[368087927,1751020250584,-460.0,0.00020547,2]
[368087928,1751020250593,-763.78,0.00020547,2]
[368087929,1751020250602,-728.28,0.00020547,2]
[368087930,1751020250611,-848.06,0.00020547,2]
[368087931,1751020250624,-4149.73,0.00020547,2]
[368087932,1751020250633,-460.0,0.00020547,2]
[368087933,1751020250643,-151.0,0.00020547,2]
[368087934,1751020250652,-578.65068982,0.00020547,2]
[368087935,1751020250661,-151.0,0.00020547,2]
[368087936,1751020250670,-460.0,0.00020547,2]
[368087937,1751020250679,-151.0,0.00020547,2]
[368087938,1751020250689,-1582.37,0.00020547,2]
[368087939,1751020250698,-151.0,0.00020547,2]
[368087940,1751020250707,-460.0,0.00020547,2]
[368087941,1751020250722,-553.23,0.00020547,2]
[368087942,1751020250731,-460.0,0.00020547,2]
[368087943,1751020250741,-460.0,0.00020547,2]
[368087944,1751020250750,-2529.12,0.00020547,2]
[368087945,1751020250759,-460.0,0.00020547,2]
[368087946,1751020250769,-220.406138,0.00020547,2]
[368087947,1751020250778,-220.406138,0.00020547,2]
[368087948,1751020250788,-729.79,0.00020547,2]
[368087949,1751020250798,-151.0,0.00020547,2]
[368087950,1751020250808,-324.116668,0.00020547,2]
[368087951,1751020250819,-324.116668,0.00020547,2]
[368087952,1751020250829,-597.89,0.00020547,2]
[368087953,1751020250839,-2900.7,0.00020547,2]
[368087954,1751020250848,-460.0,0.00020547,2]
[368087955,1751020250858,-407.82165379,0.00020547,2]
[368087956,1751020250868,-460.0,0.00020547,2]
[368087957,1751020250878,-460.0,0.00020547,2]
[368087959,1751020250888,-722.39,0.00020547,2]
[368087960,1751020250897,-1095.4,0.00020547,2]
[368087961,1751020250907,-3650.44,0.00020547,2]
[368087962,1751020250916,-460.0,0.00020547,2]
[368087963,1751020250925,-460.0,0.00020547,2]
[368087964,1751020250934,-4572.4,0.00020547,2]
[368087965,1751020250943,-635.51,0.00020547,2]
[368087966,1751020250952,-1281.14,0.00020547,2]
[368087967,1751020250962,-8065.02,0.00020547,2]
[368087968,1751020250971,-856.99,0.00020547,2]
[368087969,1751020250980,-616.83,0.00020547,2]
[368087970,1751020250990,-514.9,0.00020547,2]
[368087971,1751020250999,-460.0,0.00020547,2]
[368087972,1751020251008,-460.0,0.00020547,2]
[368087973,1751020251018,-460.0,0.00020547,2]
[368087974,1751020251027,-460.0,0.00020547,2]
[368087975,1751020251038,-485.65,0.00020547,2]
[368087976,1751020251047,-3426.74,0.00020547,2]
[368087977,1751020251057,-556.41,0.00020547,2]
[368087978,1751020251066,-5000.0,0.00020557,2]
[368087979,1751020251075,-4662.34,0.000206,2]
[368087980,1751020251085,-151.0,0.000206,3]
[368087981,1751020251094,-5888.0,0.00020662,2]
[368087982,1751020251103,-3990.99548484,0.00020721,2]
[368087983,1751020251113,-692.712272,0.00020727,4]
[368087984,1751020251122,-42255.00915418,0.00020727,2]
[368087985,1751020251132,-8927.27784962,0.00020728,3]
[368087986,1751020251141,-524.32400359,0.00020728,3]
[368087987,1751020251150,-995.426,0.00020728,2]
[368087988,1751020251160,-151.0,0.00020728,2]
[368087989,1751020251170,-198.0,0.00020728,2]
[368087990,1751020251179,-151.0,0.00020728,2]
[368087991,1751020251189,-151.0,0.00020728,2]
[368087992,1751020251198,-151.0,0.00020728,2]
[368087993,1751020251207,-151.0,0.00020728,2]
[368087994,1751020251217,-273.504279,0.00020728,2]
[368087995,1751020251226,-273.504279,0.00020728,2]
[368087996,1751020251236,-151.0,0.00020728,2]
[368087997,1751020251246,-151.0,0.00020728,2]
[368087998,1751020251256,-151.0,0.00020728,2]
[368087999,1751020251265,-151.0,0.00020728,2]
[368088000,1751020251275,-153.012771,0.00020728,2]
[368088001,1751020251284,-151.0,0.00020728,2]
[368088002,1751020251294,-192.38194,0.00020728,2]
[368088003,1751020251304,-192.38194,0.00020728,2]
[368088004,1751020251313,-151.0,0.00020728,2]
[368088005,1751020251322,-151.0,0.00020728,2]
[368088006,1751020251332,-970.0,0.00020732,2]
[368088007,1751020251342,-177.889,0.00020768,2]
[368088008,1751020251351,-53963.7303666,0.00020808,2]
[368088009,1751020251361,-460.0,0.00020821,2]
[368088010,1751020251371,-460.0,0.00020821,2]
[368088011,1751020251380,-943.36,0.00020821,2]
[368088012,1751020251390,-460.0,0.00020821,2]
[368088013,1751020251399,-178.28551648,0.00020821,2]
[368088014,1751020251409,-460.0,0.00020821,2]
[368088015,1751020251418,-460.0,0.00020821,2]
[368088016,1751020251428,-827.08,0.00020821,2]
[368088017,1751020251437,-151.0,0.00020821,2]
[368088018,1751020251446,-6214.77,0.00020821,2]
[368088019,1751020251456,-460.0,0.00020821,2]
[368088020,1751020251465,-461.43,0.00020821,2]
[368088021,1751020251475,-460.0,0.00020821,2]
[368088022,1751020251484,-1600.51,0.00020821,2]
[368088023,1751020251494,-460.0,0.00020821,2]
[368088024,1751020251503,-460.0,0.00020821,2]
[368088025,1751020251512,-460.0,0.00020821,2]
[368088026,1751020251521,-1340.47,0.00020821,2]
[368088027,1751020251531,-494.36,0.00020821,2]
[368088028,1751020251541,-2093.2,0.00020821,2]
[368088029,1751020251551,-151.0,0.00020821,2]
[368088030,1751020251560,-460.0,0.00020821,2]
[368088031,1751020251570,-460.0,0.00020821,2]
[368088032,1751020251579,-2456.96,0.00020821,2]
[368088033,1751020251589,-770.29,0.00020821,2]
[368088034,1751020251599,-460.0,0.00020821,2]
[368088035,1751020251608,-460.0,0.00020821,2]
[368088036,1751020251618,-550.47,0.00020821,2]
[368088037,1751020251627,-637.21,0.00020821,2]
[368088038,1751020251637,-4672.74,0.00020821,2]
[368088039,1751020251646,-2165.56,0.00020821,2]
[368088040,1751020251655,-1187.64,0.00020821,2]
[368088041,1751020251665,-460.0,0.00020821,2]
[368088042,1751020251674,-460.0,0.00020821,2]
[368088043,1751020251683,-757.12,0.00020821,2]
[368088044,1751020251693,-894.02,0.00020821,2]
[368088045,1751020251702,-460.0,0.00020821,2]
[368088046,1751020251713,-763.78,0.00020821,2]
[368088047,1751020251723,-728.28,0.00020821,2]
[368088048,1751020251733,-848.06,0.00020821,2]
[368088049,1751020251743,-4149.73,0.00020821,2]
[368088050,1751020251753,-460.0,0.00020821,2]
[368088051,1751020251763,-151.0,0.00020821,2]
[368088052,1751020251772,-460.0,0.00020821,2]
[368088053,1751020251782,-151.0,0.00020821,2]
[368088054,1751020251793,-1582.37,0.00020821,2]
[368088055,1751020251803,-151.0,0.00020821,2]
[368088056,1751020251814,-460.0,0.00020821,2]
[368088057,1751020251824,-553.23,0.00020821,2]
[368088058,1751020251833,-460.0,0.00020821,2]
[368088059,1751020251842,-460.0,0.00020821,2]
[368088060,1751020251852,-2529.12,0.00020821,2]
[368088061,1751020251861,-460.0,0.00020821,2]
[368088062,1751020251871,-220.406138,0.00020821,2]
[368088063,1751020251881,-220.406138,0.00020821,2]
[368088064,1751020251890,-729.79,0.00020821,2]
[368088065,1751020251900,-324.116668,0.00020821,2]
[368088066,1751020251910,-324.116668,0.00020821,2]
[368088067,1751020251920,-597.89,0.00020821,2]
[368088068,1751020251929,-2900.7,0.00020821,2]
[368088069,1751020251939,-460.0,0.00020821,2]
[368088070,1751020251948,-225.82096328,0.00020821,2]
[368088071,1751020251958,-460.0,0.00020821,2]
[368088072,1751020251968,-722.39,0.00020821,2]
[368088073,1751020251977,-1095.4,0.00020821,2]
[368088074,1751020251987,-3650.44,0.00020821,2]
[368088075,1751020251997,-460.0,0.00020821,2]
[368088076,1751020252007,-460.0,0.00020821,2]
[368088077,1751020252016,-4572.4,0.00020821,2]
[368088078,1751020252025,-635.51,0.00020821,2]
[368088079,1751020252035,-1281.14,0.00020821,2]
[368088080,1751020252044,-8065.02,0.00020821,2]
[368088081,1751020252053,-856.99,0.00020821,2]
[368088082,1751020252063,-616.83,0.00020821,2]
[368088083,1751020252073,-514.9,0.00020821,2]
[368088084,1751020252082,-460.0,0.00020821,2]
[368088085,1751020252092,-460.0,0.00020821,2]
[368088086,1751020252101,-151.0,0.00020821,2]
[368088087,1751020252111,-460.0,0.00020821,2]
[368088088,1751020252120,-460.0,0.00020821,2]
[368088089,1751020252131,-485.65,0.00020821,2]
[368088090,1751020252142,-3426.74,0.00020821,2]
[368088091,1751020252153,-215.0738,0.0002083,2]
[368088092,1751020252164,-665.47548633,0.00020846,2]
[368088093,1751020252173,-420.0,0.00020851,2]
[368088094,1751020252183,-151.0,0.00020852,2]
[368088095,1751020252193,-151.0,0.00020852,2]
[368088096,1751020252203,-151.0,0.00020852,2]
[368088097,1751020252213,-151.0,0.00020852,2]
[368088098,1751020252223,-253.878886,0.00020852,2]
[368088099,1751020252232,-152.145735,0.00020858,2]
[368088100,1751020252243,-252.52113,0.00020858,2]
[368088101,1751020252255,-151.0,0.000209,3]
[368088102,1751020252265,-970.0,0.00020912,2]
[368088103,1751020252275,-2000.0,0.00020916,2]
[368088104,1751020252285,-8927.27784962,0.00020934,4]
[368088105,1751020252295,-2673.87906123,0.00021,2]
[368088106,1751020252304,-6932.90631914,0.00021,2]
[368088107,1751020252314,-10400.39089948,0.00021041,2]
[368088108,1751020252324,-151.0,0.00021041,2]
[368088109,1751020252334,-200.0,0.0002109,2]
[368088110,1751020252344,-157.66,0.00021095,2]
[368088111,1751020252354,-278.72205502,0.00021095,2]
[368088112,1751020252364,-349.32660031,0.00021095,2]
[368088113,1751020252374,-151.0,0.00021095,2]
[368088114,1751020252383,-460.0,0.00021095,2]
[368088115,1751020252393,-155.085779,0.00021095,2]
[368088116,1751020252403,-155.085779,0.00021095,2]
[368088117,1751020252412,-151.985088,0.00021095,2]
[368088118,1751020252422,-943.36,0.00021095,2]
[368088119,1751020252432,-229.226234,0.00021095,2]
[368088120,1751020252443,-151.0,0.00021095,2]
[368088121,1751020252453,-460.0,0.00021095,2]
[368088122,1751020252463,-460.0,0.00021095,2]
[368088123,1751020252474,-151.0,0.00021095,2]
[368088124,1751020252484,-827.08,0.00021095,2]
[368088125,1751020252493,-151.0,0.00021095,2]
[368088126,1751020252503,-153.304182,0.00021095,2]
[368088127,1751020252513,-151.0,0.00021095,2]
[368088128,1751020252522,-151.0,0.00021095,2]
[368088129,1751020252533,-6214.77,0.00021095,2]
[368088130,1751020252546,-460.0,0.00021095,2]
[368088131,1751020252555,-461.43,0.00021095,2]
[368088132,1751020252565,-460.0,0.00021095,2]
[368088133,1751020252576,-1600.51,0.00021095,2]
[368088134,1751020252586,-460.0,0.00021095,2]
[368088135,1751020252595,-258.82356254,0.00021095,2]
[368088136,1751020252605,-460.0,0.00021095,2]
[368088137,1751020252615,-1340.47,0.00021095,2]
[368088138,1751020252624,-494.36,0.00021095,2]
[368088139,1751020252634,-2093.2,0.00021095,2]
[368088140,1751020252644,-460.0,0.00021095,2]
[368088141,1751020252654,-460.0,0.00021095,2]
[368088142,1751020252663,-2456.96,0.00021095,2]
[368088143,1751020252673,-770.29,0.00021095,2]
[368088144,1751020252682,-460.0,0.00021095,2]
[368088145,1751020252692,-577.41412611,0.00021095,2]
[368088146,1751020252703,-550.47,0.00021095,2]
[368088147,1751020252715,-637.21,0.00021095,2]
[368088148,1751020252725,-4672.74,0.00021095,2]
[368088149,1751020252735,-2165.56,0.00021095,2]
[368088150,1751020252744,-1187.64,0.00021095,2]
[368088151,1751020252755,-460.0,0.00021095,2]
[368088152,1751020252764,-460.0,0.00021095,2]
[368088153,1751020252774,-757.12,0.00021095,2]
[368088154,1751020252783,-894.02,0.00021095,2]
[368088155,1751020252801,-471.16412517,0.00021095,2]
[368088156,1751020252812,-763.78,0.00021095,2]
[368088157,1751020252822,-728.28,0.00021095,2]
[368088158,1751020252832,-848.06,0.00021095,2]
[368088159,1751020252841,-4149.73,0.00021095,2]
[368088160,1751020252851,-460.0,0.00021095,2]
[368088161,1751020252861,-413.07799668,0.00021095,2]
[368088162,1751020252871,-1582.37,0.00021095,2]
[368088163,1751020252881,-460.0,0.00021095,2]
[368088164,1751020252891,-553.23,0.00021095,2]
[368088165,1751020252901,-460.0,0.00021095,2]
[368088166,1751020252911,-2529.12,0.00021095,2]
[368088167,1751020252920,-460.0,0.00021095,2]
[368088168,1751020252929,-460.0,0.00021095,2]
[368088169,1751020252939,-729.79,0.00021095,2]
[368088170,1751020252949,-597.89,0.00021095,2]
[368088171,1751020252959,-2900.7,0.00021095,2]
[368088172,1751020252968,-460.0,0.00021095,2]
[368088173,1751020252978,-413.49062139,0.00021095,2]
[368088174,1751020252987,-722.39,0.00021095,2]
[368088175,1751020252997,-1095.4,0.00021095,2]
[368088176,1751020253008,-3650.44,0.00021095,2]
[368088177,1751020253121,-569.23,0.00021095,2]
[368088178,1751020253131,-460.0,0.00021095,2]
[368088179,1751020253141,-4572.4,0.00021095,2]
[368088180,1751020253151,-635.51,0.00021095,2]
[368088181,1751020253160,-1281.14,0.00021095,2]
[368088182,1751020253169,-8065.02,0.00021095,2]
[368088183,1751020253178,-856.99,0.00021095,2]
[368088184,1751020253188,-616.83,0.00021095,2]
[368088185,1751020253199,-514.9,0.00021095,2]
[368088186,1751020253208,-460.0,0.00021095,2]
[368088187,1751020253217,-460.0,0.00021095,2]
[368088188,1751020253227,-207.68887,0.00021095,2]
[368088189,1751020253236,-592.45743595,0.00021095,2]
[368088190,1751020253245,-460.0,0.00021095,2]
[368088191,1751020253255,-485.65,0.00021095,2]
[368088192,1751020253265,-3426.74,0.00021095,2]
[368088193,1751020253274,-151.0,0.000211,3]
[368088194,1751020253283,-5000.0,0.00021105,2]
[368088195,1751020253293,-151.0,0.00021141,2]
[368088196,1751020253302,-151.0,0.00021141,2]
[368088197,1751020253311,-151.0,0.00021141,2]
[368088198,1751020253321,-151.0,0.00021141,2]
[368088199,1751020253330,-192.38194,0.00021141,2]
[368088200,1751020253340,-192.38194,0.00021141,2]
[368088201,1751020253349,-151.0,0.00021141,2]
[368088202,1751020253359,-151.0,0.00021141,2]
[368088203,1751020253368,-8927.27784962,0.00021141,4]
[368088204,1751020253378,-168.0,0.00021196,2]
[368088205,1751020253388,-45795.97383368,0.00021232,2]
[368088206,1751020253526,-7990.19741954,0.00021232,2]
[368088207,1751020253536,-151.0,0.00021232,2]
[368088208,1751020253545,-151.0,0.00021232,2]
[368088209,1751020253555,-151.0,0.00021232,2]
[368088210,1751020253564,-152.798571,0.00021232,2]
[368088211,1751020253573,-273.504279,0.00021232,2]
[368088212,1751020253583,-273.504279,0.00021232,2]
[368088213,1751020253593,-151.0,0.00021232,2]
[368088214,1751020253603,-151.0,0.00021232,2]
[368088215,1751020253612,-151.0,0.00021232,2]
[368088216,1751020253622,-151.0,0.00021232,2]
[368088217,1751020253632,-151.0,0.00021232,2]
[368088218,1751020253641,-151.0,0.00021232,2]
[368088219,1751020253651,-220.406138,0.00021232,2]
[368088220,1751020253660,-220.406138,0.00021232,2]
[368088221,1751020253671,-324.116668,0.00021232,2]
[368088222,1751020253680,-324.116668,0.00021232,2]
[368088223,1751020253690,-4430.0,0.000213,2]
[368088224,1751020253699,-152.487486,0.000213,2]
[368088225,1751020253709,-2902.0,0.00021317,2]
[368088226,1751020253721,-151.304449,0.00021317,2]
[368088227,1751020253732,-151.0,0.00021317,2]
[368088228,1751020253742,-151.0,0.00021317,2]
[368088229,1751020253752,-168.0,0.00021321,2]
[368088230,1751020253762,-8927.27784962,0.00021348,5]
[368088231,1751020253772,-200.0,0.00021368,2]
[368088232,1751020253782,-151.0,0.00021369,2]
[368088233,1751020253795,-151.0,0.00021369,2]
[368088234,1751020253804,-151.0,0.00021369,2]
[368088235,1751020253814,-943.36,0.00021369,2]
[368088236,1751020253824,-151.0,0.00021369,2]
[368088237,1751020253834,-151.0,0.00021369,2]
[368088238,1751020253844,-151.0,0.00021369,2]
[368088239,1751020253855,-460.0,0.00021369,2]
[368088240,1751020253864,-460.0,0.00021369,2]
[368088241,1751020253874,-151.0,0.00021369,2]
[368088242,1751020253885,-151.0,0.00021369,2]
[368088243,1751020253894,-827.08,0.00021369,2]
[368088244,1751020253903,-151.0,0.00021369,2]
[368088245,1751020253912,-151.0,0.00021369,2]
[368088246,1751020253921,-6214.77,0.00021369,2]
[368088247,1751020253930,-460.0,0.00021369,2]
[368088248,1751020253939,-461.43,0.00021369,2]
[368088249,1751020253948,-460.0,0.00021369,2]
[368088250,1751020253958,-1600.51,0.00021369,2]
[368088251,1751020253969,-460.0,0.00021369,2]
[368088252,1751020253978,-1340.47,0.00021369,2]
[368088253,1751020253988,-494.36,0.00021369,2]
[368088254,1751020253997,-2093.2,0.00021369,2]
[368088255,1751020254006,-460.0,0.00021369,2]
[368088256,1751020254015,-460.0,0.00021369,2]
[368088257,1751020254025,-2456.96,0.00021369,2]
[368088258,1751020254036,-770.29,0.00021369,2]
[368088259,1751020254046,-550.47,0.00021369,2]
[368088260,1751020254059,-637.21,0.00021369,2]
[368088261,1751020254069,-4672.74,0.00021369,2]
[368088262,1751020254079,-2165.56,0.00021369,2]
[368088263,1751020254090,-1187.64,0.00021369,2]
[368088264,1751020254101,-410.0,0.00021369,2]
[368088265,1751020254111,-460.0,0.00021369,2]
[368088266,1751020254121,-757.12,0.00021369,2]
[368088267,1751020254130,-894.02,0.00021369,2]
[368088268,1751020254140,-763.78,0.00021369,2]
[368088269,1751020254150,-728.28,0.00021369,2]
[368088270,1751020254158,-848.06,0.00021369,2]
[368088271,1751020254167,-4149.73,0.00021369,2]
[368088272,1751020254177,-460.0,0.00021369,2]
[368088273,1751020254187,-1582.37,0.00021369,2]
[368088274,1751020254196,-460.0,0.00021369,2]
[368088275,1751020254205,-553.23,0.00021369,2]
[368088276,1751020254214,-460.0,0.00021369,2]
[368088277,1751020254225,-2529.12,0.00021369,2]
[368088278,1751020254234,-460.0,0.00021369,2]
[368088279,1751020254244,-460.0,0.00021369,2]
[368088280,1751020254253,-729.79,0.00021369,2]
[368088281,1751020254263,-597.89,0.00021369,2]
[368088282,1751020254272,-2900.7,0.00021369,2]
[368088283,1751020254282,-460.0,0.00021369,2]
[368088284,1751020254292,-722.39,0.00021369,2]
[368088285,1751020254301,-1095.4,0.00021369,2]
[368088286,1751020254310,-3650.44,0.00021369,2]
[368088287,1751020254320,-460.0,0.00021369,2]
[368088288,1751020254330,-4572.4,0.00021369,2]
[368088289,1751020254339,-635.51,0.00021369,2]
[368088290,1751020254348,-1281.14,0.00021369,2]
[368088291,1751020254357,-8065.02,0.00021369,2]
[368088292,1751020254367,-856.99,0.00021369,2]
[368088293,1751020254377,-616.83,0.00021369,2]
[368088294,1751020254386,-514.9,0.00021369,2]
[368088295,1751020254395,-460.0,0.00021369,2]
[368088296,1751020254404,-460.0,0.00021369,2]
[368088297,1751020254413,-460.0,0.00021369,2]
[368088298,1751020254423,-46.92768065,0.00021369,2]
[368088299,1751020254772,-460.0,0.00019178,2]
[368088300,1751020254782,-460.0,0.00019178,2]
[368088301,1751020254792,-2400.33596842,0.00019178,2]
[368088302,1751020254884,-2047.13425796,0.00019178,2]
[368088303,1751020283103,159.323873,0.00013699,2]
[368088330,1751021236140,-1457.02867041,0.00018,2]
[368088331,1751021244079,-757.97132959,0.00018,2]
[368088332,1751021244101,-201.66384461,0.00018059,2]
[368088333,1751021244124,-67.67598895,0.00018158,2]
[368088336,1751021285386,159.323873,0.00013699,2]
[368088337,1751021348181,-300.0,0.00017974,2]
[368088338,1751021348360,-24900.0,0.00017975,2]
[368088339,1751021348382,-932.32401105,0.00018158,2]
[368088340,1751021348404,-2230.09073399,0.00018176,2]
[368088392,1751021432650,-69.72938401,0.00018176,2]
[368088394,1751021432659,-180.01980218,0.0001824,2]
[368088396,1751021432668,-160.0,0.000184,2]
[368088398,1751021432678,-765.08520156,0.00018864,2]
[368088399,1751021432687,-1136.05376799,0.000189,2]
[368088400,1751021432696,-1136.05376799,0.000189,2]
[368088401,1751021432706,-1200.0,0.00018964,2]
[368088403,1751021432715,-1200.0,0.00018964,2]
[368088405,1751021432724,-300.0,0.00018966,2]
[368088407,1751021432733,-300.0,0.00018966,2]
[368088409,1751021432742,-300.0,0.00018966,2]
[368088411,1751021432751,-4337.50678474,0.00018966,2]
[368088413,1751021432763,-769.55865236,0.00018966,2]
[368088415,1751021432775,-2159.59038949,0.00018966,2]
[368088418,1751021432790,-9799.41913991,0.00018966,2]
[368088420,1751021432802,-457.06942327,0.00018966,2]
[368088422,1751021432813,-757.55200242,0.00018966,2]
[368088425,1751021432828,-481.84569023,0.00018966,2]
[368088427,1751021432839,-605.45,0.00018966,2]
[368088463,1751021438531,-3453.31703718,0.00018966,2]
[368088464,1751021438545,-1381.848,0.00018966,2]
[368088465,1751021438644,-25796.8428804,0.00018966,2]
[368088466,1751021438653,-4756.5367916,0.00018967,2]
[368088467,1751021438663,-500.0,0.00018993,2]
[368088468,1751021438673,-500.0,0.00018993,2]
[368088469,1751021438682,-500.0,0.00018993,2]
[368088470,1751021438692,-500.0,0.00018993,2]
[368088471,1751021438702,-500.0,0.00018993,2]
[368088472,1751021438711,-500.0,0.00018993,2]
[368088473,1751021438721,-605.96616452,0.00018993,2]
[368088474,1751021438731,-500.0,0.00018993,2]
[368088475,1751021438741,-500.0,0.00018993,2]
[368088476,1751021438750,-500.0,0.00018993,2]
[368088477,1751021438760,-185.66707202,0.00019,2]
[368088478,1751021438769,-10461.89899192,0.00019,2]
[368088479,1751021438779,-168.0,0.00019136,2]
[368088480,1751021438789,-10461.89899176,0.00019141,2]
[368088481,1751021438799,-500.0,0.00019164,2]
[368088482,1751021438808,-1000.0,0.00019166,2]
[368088483,1751021438819,-316.98,0.00019168,3]
[368088484,1751021438828,-225.66,0.00019168,3]
[368088485,1751021438838,-345.19,0.00019168,3]
[368088486,1751021438848,-491.96,0.00019168,3]
[368088487,1751021438858,-245.98,0.00019168,3]
[368088488,1751021438868,-287.5,0.00019168,3]
[368088489,1751021438877,-862.55,0.00019168,3]
[368088490,1751021438887,-460.0,0.00019178,2]
[368088491,1751021438897,-460.0,0.00019178,2]
[368088492,1751021438907,-460.0,0.00019178,2]
[368088493,1751021438916,-321.25852083,0.00019178,2]
[368088494,1751021438926,-460.0,0.00019178,2]
[368088495,1751021438937,-460.0,0.00019178,2]
[368088496,1751021438946,-460.0,0.00019178,2]
[368088497,1751021438955,-460.0,0.00019178,2]
[368088498,1751021438965,-460.4197075,0.00019178,2]
[368088499,1751021438974,-460.0,0.00019178,2]
[368088500,1751021438984,-406.38651822,0.00019178,2]
[368088501,1751021438994,-460.0,0.00019178,2]
[368088502,1751021439004,-429.8736404,0.00019178,2]
[368088503,1751021439014,-472.29,0.00019178,2]
[368088504,1751021439024,-460.0,0.00019178,2]
[368088505,1751021439034,-460.0,0.00019178,2]
[368088506,1751021439044,-332.8960642,0.00019178,2]
[368088507,1751021439054,-460.0,0.00019178,2]
[368088508,1751021439063,-460.0,0.00019178,2]
[368088509,1751021439073,-460.0,0.00019178,2]
[368088510,1751021439082,-460.0,0.00019178,2]
[368088511,1751021439094,-460.0,0.00019178,2]
[368088512,1751021439103,-487.31,0.00019178,2]
[368088513,1751021439112,-460.0,0.00019178,2]
[368088514,1751021439122,-460.0,0.00019178,2]
[368088515,1751021439132,-431.37286911,0.00019178,2]
[368088516,1751021439141,-460.0,0.00019178,2]
[368088517,1751021439151,-460.0,0.00019178,2]
[368088518,1751021439161,-460.0,0.00019178,2]
[368088519,1751021439171,-460.0,0.00019178,2]
[368088520,1751021439180,-460.0,0.00019178,2]
[368088521,1751021439190,-460.0,0.00019178,2]
[368088522,1751021439199,-460.0,0.00019178,2]
[368088523,1751021439209,-460.0,0.00019178,2]
[368088524,1751021439218,-460.0,0.00019178,2]
[368088525,1751021439228,-460.0,0.00019178,2]
[368088526,1751021439238,-460.0,0.00019178,2]
[368088527,1751021439248,-460.0,0.00019178,2]
[368088528,1751021439262,-460.0,0.00019178,2]
[368088529,1751021439272,-460.0,0.00019178,2]
[368088530,1751021439282,-460.0,0.00019178,2]
[368088531,1751021439291,-460.0,0.00019178,2]
[368088532,1751021439301,-460.0,0.00019178,2]
[368088533,1751021439310,-460.0,0.00019178,2]
[368088534,1751021439320,-460.0,0.00019178,2]
[368088535,1751021439331,-460.0,0.00019178,2]
[368088536,1751021439341,-460.0,0.00019178,2]
[368088537,1751021439351,-460.0,0.00019178,2]
[368088538,1751021439361,-460.0,0.00019178,2]
[368088539,1751021439370,-460.0,0.00019178,2]
[368088540,1751021439380,-460.0,0.00019178,2]
[368088541,1751021439389,-460.0,0.00019178,2]
[368088542,1751021439399,-460.0,0.00019178,2]
[368088543,1751021439410,-460.0,0.00019178,2]
[368088544,1751021439420,-243.88,0.00019178,2]
[368088545,1751021439430,-591.0,0.00019178,2]
[368088546,1751021439440,-591.0,0.00019178,2]
[368088547,1751021439449,-591.0,0.00019178,2]
[368088548,1751021439458,-591.0,0.00019178,2]